fUST/lending_fUST_20250704
["ID","MTS","AMOUNT","RATE_DAILY","PERIOD"]
[369587669,1751632255374,-954.17,0.00017808,2]
[369587672,1751632255384,-762.92,0.00017808,2]
[369587674,1751632255394,-460.0,0.00017808,2]
[369587675,1751632255403,-460.0,0.00017808,2]
[369587678,1751632255413,-460.0,0.00017808,2]
[369587680,1751632255423,-979.12,0.00017808,2]
[369587682,1751632255432,-4685.14,0.00017808,2]
[369587684,1751632255442,-539.68,0.00017808,2]
[369587685,1751632255451,-460.0,0.00017808,2]
[369587687,1751632255461,-1802.25,0.00017808,2]
[369587689,1751632255470,-460.0,0.00017808,2]
[369587691,1751632255479,-1350.61,0.00017808,2]
[369587693,1751632255489,-1573.21,0.00017808,2]
[369587695,1751632255499,-2020.04,0.00017808,2]
[369587697,1751632255508,-1379.15,0.00017808,2]
[369587699,1751632255518,-460.0,0.00017808,2]
[369587701,1751632255527,-460.0,0.00017808,2]
[369587704,1751632255537,-3417.66,0.00017808,2]
[369587706,1751632255546,-1833.8,0.00017808,2]
[369587708,1751632255555,-554.94,0.00017808,2]
[369587710,1751632255565,-704.74,0.00017808,2]
[369587712,1751632255575,-460.0,0.00017808,2]
[369587714,1751632255584,-1085.69,0.00017808,2]
[369587716,1751632255593,-460.0,0.00017808,2]
[369587718,1751632255603,-3286.24,0.00017808,2]
[369587720,1751632255612,-809.24,0.00017808,2]
[369587721,1751632255621,-803.79,0.00017808,2]
[369587724,1751632255631,-845.36,0.00017808,2]
[369587726,1751632255640,-460.0,0.00017808,2]
[369587728,1751632255650,-1439.73,0.00017808,2]
[369587729,1751632255659,-158.13220001,0.00017808,2]
[369587731,1751632255669,-460.0,0.00017808,2]
[369587733,1751632255678,-917.22,0.00017808,2]
[369587735,1751632255687,-3338.23,0.00017808,2]
[369587737,1751632255697,-460.0,0.00017808,2]
[369587739,1751632255706,-460.0,0.00017808,2]
[369587741,1751632255717,-1561.43,0.00017808,2]
[369587743,1751632255726,-563.37,0.00017808,2]
[369587745,1751632255735,-460.0,0.00017808,2]
[369587747,1751632255745,-356.27553127,0.00017808,2]
[369587749,1751632255754,-460.0,0.00017808,2]
[369587751,1751632255763,-730.45,0.00017808,2]
[369587753,1751632255774,-334.61947751,0.00017808,2]
[369587755,1751632255784,-4363.72,0.00017808,2]
[369587757,1751632255793,-1514.73,0.00017808,2]
[369587759,1751632255802,-460.96,0.00017808,2]
[369587761,1751632255811,-956.36,0.00017808,2]
[369587763,1751632255822,-3095.02,0.00017808,2]
[369587765,1751632255831,-713.22,0.00017808,2]
[369587768,1751632255841,-460.0,0.00017808,2]
[369587769,1751632255850,-746.38,0.00017808,2]
[369587771,1751632255860,-701.45,0.00017808,2]
[369587774,1751632255870,-460.0,0.00017808,2]
[369587776,1751632255880,-758.95,0.00017808,2]
[369587778,1751632255889,-460.0,0.00017808,2]
[369587780,1751632255899,-460.0,0.00017808,2]
[369587782,1751632255908,-709.76,0.00017808,2]
[369587784,1751632255918,-1329.25,0.00017808,2]
[369587786,1751632255927,-2994.18,0.00017808,2]
[369587788,1751632255937,-1029.83,0.00017808,2]
[369587790,1751632255946,-808.48,0.00017808,2]
[369587792,1751632255956,-2016.62,0.00017808,2]
[369587794,1751632255965,-2313.48,0.00017808,2]
[369587808,1751632256090,-875.87,0.00017808,2]
[369587810,1751632256100,-460.0,0.00017808,2]
[369587812,1751632256110,-520.79,0.00017808,2]
[369587814,1751632256119,-730.21,0.00017808,2]
[369587816,1751632256128,-4799.52,0.00017808,2]
[369587818,1751632256138,-785.99,0.00017808,2]
[369587820,1751632256147,-460.0,0.00017808,2]
[369587822,1751632256157,-460.0,0.00017808,2]
[369587824,1751632256167,-460.0,0.00017808,2]
[369587826,1751632256176,-874.22,0.00017808,2]
[369587828,1751632256185,-802.58,0.00017808,2]
[369587830,1751632256196,-949.0,0.00017808,2]
[369587832,1751632256207,-460.0,0.00017808,2]
[369587834,1751632256217,-460.0,0.00017808,2]
[369587836,1751632256227,-880.89,0.00017808,2]
[369587838,1751632256236,-469.78,0.00017808,2]
[369587840,1751632256247,-1581.5,0.00017808,2]
[369587842,1751632256256,-460.0,0.00017808,2]
[369587844,1751632256266,-511.2,0.00017808,2]
[369587846,1751632256276,-460.0,0.00017808,2]
[369587848,1751632256285,-460.0,0.00017808,2]
[369587850,1751632256295,-460.0,0.00017808,2]
[369587852,1751632256304,-4933.91,0.00017808,2]
[369587854,1751632256314,-460.0,0.00017808,2]
[369587856,1751632256323,-1008.44,0.00017808,2]
[369587858,1751632256332,-802.102,0.00017841,2]
[369587861,1751632256342,-2200.0,0.00017841,2]
[369587863,1751632256352,-445.0,0.00017878,2]
[369587865,1751632256362,-151.0,0.000179,2]
[369587866,1751632256371,-151.0,0.000179,2]
[369587869,1751632256382,-2474.22746086,0.00017901,2]
[369587870,1751632256392,-266.8,0.00017975,2]
[369587872,1751632256402,-5054.35170914,0.00018,2]
[369587874,1751632256411,-1925.34234775,0.00018,2]
[369587876,1751632256420,-1307.13140143,0.00018,2]
[369587878,1751632256430,-12433.93680142,0.00018,2]
[369587880,1751632256439,-151.0,0.00018,2]
[369587882,1751632256448,-168.0,0.00018028,2]
[369587884,1751632256457,-168.0,0.00018035,2]
[369587886,1751632256466,-445.0,0.00018079,2]
[369587888,1751632256476,-930.93,0.00018082,2]
[369587890,1751632256485,-460.0,0.00018082,2]
[369587892,1751632256495,-460.0,0.00018082,2]
[369587894,1751632256505,-460.0,0.00018082,2]
[369587896,1751632256514,-480.47125131,0.00018082,2]
[369587898,1751632256523,-460.0,0.00018082,2]
[369587900,1751632256533,-460.0,0.00018082,2]
[369587903,1751632256542,-460.0,0.00018082,2]
[369587905,1751632256551,-460.0,0.00018082,2]
[369587906,1751632256560,-388.59427715,0.00018082,2]
[369587909,1751632256570,-350.0,0.00018082,2]
[369587911,1751632256579,-460.0,0.00018082,2]
[369587913,1751632256589,-460.0,0.00018082,2]
[369587915,1751632256598,-460.0,0.00018082,2]
[369587916,1751632256607,-645.14,0.00018082,2]
[369587918,1751632256616,-460.0,0.00018082,2]
[369587920,1751632256626,-922.62,0.00018082,2]
[369587922,1751632256635,-460.0,0.00018082,2]
[369587924,1751632256645,-698.72,0.00018082,2]
[369587926,1751632256655,-460.0,0.00018082,2]
[369587928,1751632256665,-794.9,0.00018082,2]
[369587930,1751632256674,-460.0,0.00018082,2]
[369587932,1751632256684,-460.0,0.00018082,2]
[369587934,1751632256694,-433.02262576,0.00018082,2]
[369587936,1751632256704,-783.35,0.00018082,2]
[369587939,1751632256714,-460.0,0.00018082,2]
[369587940,1751632256724,-460.0,0.00018082,2]
[369587943,1751632256734,-460.0,0.00018082,2]
[369587944,1751632256743,-460.0,0.00018082,2]
[369587946,1751632256753,-460.0,0.00018082,2]
[369587949,1751632256763,-460.0,0.00018082,2]
[369587951,1751632256773,-460.0,0.00018082,2]
[369587952,1751632256783,-954.17,0.00018082,2]
[369587954,1751632256792,-762.92,0.00018082,2]
[369587957,1751632256802,-460.0,0.00018082,2]
[369587959,1751632256812,-460.0,0.00018082,2]
[369587961,1751632256822,-979.12,0.00018082,2]
[369587963,1751632256831,-4685.14,0.00018082,2]
[369587964,1751632256841,-539.68,0.00018082,2]
[369587966,1751632256850,-460.0,0.00018082,2]
[369587968,1751632256859,-1802.25,0.00018082,2]
[369587970,1751632256868,-460.0,0.00018082,2]
[369587972,1751632256877,-1350.61,0.00018082,2]
[369587974,1751632256887,-1573.21,0.00018082,2]
[369587976,1751632256896,-2020.04,0.00018082,2]
[369587978,1751632256906,-1379.15,0.00018082,2]
[369587980,1751632256916,-460.0,0.00018082,2]
[369587982,1751632256925,-460.0,0.00018082,2]
[369587984,1751632256935,-3417.66,0.00018082,2]
[369587986,1751632256944,-1833.8,0.00018082,2]
[369587988,1751632256953,-554.94,0.00018082,2]
[369587990,1751632256964,-704.74,0.00018082,2]
[369587992,1751632256974,-460.0,0.00018082,2]
[369587994,1751632256983,-460.0,0.00018082,2]
[369587996,1751632256993,-1085.69,0.00018082,2]
[369587998,1751632257002,-3286.24,0.00018082,2]
[369588000,1751632257012,-809.24,0.00018082,2]
[369588002,1751632257022,-803.79,0.00018082,2]
[369588004,1751632257031,-845.36,0.00018082,2]
[369588006,1751632257040,-460.0,0.00018082,2]
[369588008,1751632257049,-1439.73,0.00018082,2]
[369588010,1751632257058,-460.0,0.00018082,2]
[369588012,1751632257067,-917.22,0.00018082,2]
[369588014,1751632257077,-3338.23,0.00018082,2]
[369588016,1751632257086,-460.0,0.00018082,2]
[369588018,1751632257096,-460.0,0.00018082,2]
[369588020,1751632257105,-1561.43,0.00018082,2]
[369588022,1751632257114,-563.37,0.00018082,2]
[369588024,1751632257124,-460.0,0.00018082,2]
[369588026,1751632257134,-730.45,0.00018082,2]
[369588028,1751632257143,-4363.72,0.00018082,2]
[369588030,1751632257153,-1514.73,0.00018082,2]
[369588032,1751632257163,-460.96,0.00018082,2]
[369588034,1751632257172,-956.36,0.00018082,2]
[369588036,1751632257182,-3095.02,0.00018082,2]
[369588038,1751632257192,-713.22,0.00018082,2]
[369588040,1751632257205,-460.0,0.00018082,2]
[369588041,1751632257215,-746.38,0.00018082,2]
[369588044,1751632257225,-701.45,0.00018082,2]
[369588045,1751632257235,-440.95589888,0.00018082,2]
[369588047,1751632257246,-758.95,0.00018082,2]
[369588049,1751632257256,-460.0,0.00018082,2]
[369588051,1751632257266,-460.0,0.00018082,2]
[369588054,1751632257276,-709.76,0.00018082,2]
[369588055,1751632257285,-1329.25,0.00018082,2]
[369588058,1751632257295,-2994.18,0.00018082,2]
[369588060,1751632257305,-1029.83,0.00018082,2]
[369588061,1751632257315,-808.48,0.00018082,2]
[369588063,1751632257324,-2016.62,0.00018082,2]
[369588065,1751632257334,-2313.48,0.00018082,2]
[369588068,1751632257343,-875.87,0.00018082,2]
[369588069,1751632257354,-460.0,0.00018082,2]
[369588071,1751632257363,-520.79,0.00018082,2]
[369588073,1751632257372,-730.21,0.00018082,2]
[369588075,1751632257381,-4799.52,0.00018082,2]
[369588077,1751632257391,-785.99,0.00018082,2]
[369588079,1751632257400,-460.0,0.00018082,2]
[369588081,1751632257409,-460.0,0.00018082,2]
[369588083,1751632257418,-460.0,0.00018082,2]
[369588085,1751632257428,-874.22,0.00018082,2]
[369588087,1751632257438,-802.58,0.00018082,2]
[369588089,1751632257447,-949.0,0.00018082,2]
[369588091,1751632257457,-460.0,0.00018082,2]
[369588093,1751632257468,-460.0,0.00018082,2]
[369588095,1751632257478,-880.89,0.00018082,2]
[369588097,1751632257487,-469.78,0.00018082,2]
[369588099,1751632257497,-1581.5,0.00018082,2]
[369588101,1751632257507,-460.0,0.00018082,2]
[369588103,1751632257516,-511.2,0.00018082,2]
[369588105,1751632257526,-460.0,0.00018082,2]
[369588107,1751632257535,-460.0,0.00018082,2]
[369588109,1751632257545,-460.0,0.00018082,2]
[369588111,1751632257554,-4933.91,0.00018082,2]
[369588113,1751632257563,-460.0,0.00018082,2]
[369588115,1751632257572,-1008.44,0.00018082,2]
[369588117,1751632257581,-10000.0,0.0001809,2]
[369588119,1751632257590,-23626.78,0.000181,2]
[369588121,1751632257600,-151.0,0.000182,2]
[369588123,1751632257610,-168.0,0.00018205,2]
[369588125,1751632257619,-967.0,0.00018212,2]
[369588127,1751632257628,-1000.0,0.00018219,2]
[369588129,1751632257638,-1000.58316062,0.00018219,2]
[369588131,1751632257648,-500.92298807,0.00018219,2]
[369588133,1751632257657,-501.22139317,0.00018219,2]
[369588135,1751632257666,-1000.0,0.00018219,2]
[369588137,1751632257676,-332.14239049,0.00018219,2]
[369588139,1751632257686,-1000.0,0.00018219,2]
[369588141,1751632257695,-416.85082478,0.00018219,2]
[369588160,1751632257875,-349.93587836,0.00018219,2]
[369588166,1751632257920,-233.21329686,0.00018219,2]
[369588167,1751632257930,-500.90077759,0.00018219,2]
[369588169,1751632257939,-453.70372145,0.00018219,2]
[369588171,1751632257949,-501.58230495,0.00018219,2]
[369588173,1751632257962,-1000.0,0.00018219,2]
[369588175,1751632257971,-36.0903335,0.00018219,2]
[369588177,1751632257982,-963.9096665,0.00018219,2]
[369588179,1751632257991,-500.0,0.00018223,2]
[369588181,1751632258001,-3112.64,0.00018281,2]
[369588183,1751632258010,-500.0,0.00018281,2]
[369588185,1751632258019,-1000.0,0.00018281,2]
[369588187,1751632258029,-171.92211985,0.000183,4]
[369588189,1751632258039,-151.0,0.000183,2]
[369588191,1751632258048,-817.30170587,0.00018307,2]
[369588193,1751632258058,-1000.0,0.00018307,2]
[369588194,1751632258068,-1001.60636709,0.00018307,2]
[369588196,1751632258077,-489.06578136,0.00018341,2]
[369588209,1751632258197,-459.53399599,0.00018341,2]
[369588211,1751632258210,-503.43673046,0.00018341,2]
[369588213,1751632258220,-634.92749259,0.00018356,2]
[369588215,1751632258231,-296.00250741,0.00018356,2]
[369588217,1751632258242,-280.70045317,0.00018356,2]
[369588219,1751632258252,-460.0,0.00018356,2]
[369588221,1751632258261,-6.64220725,0.00018356,2]
[369588511,1751632375618,788.441479,0.00013699,2]
[369588519,1751632924631,7504.8014271,0.00014903,2]
[369588525,1751633186620,5000.0,0.0001501,2]
[369588973,1751633432614,-179.80221756,0.0001528,2]
[369588974,1751633432624,-1200.0,0.0001544,2]
[369588976,1751633432633,-300.0,0.0001544,2]
[369588978,1751633432642,-300.0,0.0001544,2]
[369588980,1751633432655,-63.06281482,0.0001544,2]
[369588982,1751633432666,-236.93718518,0.0001544,2]
[369588984,1751633432675,-324.082278,0.0001544,2]
[369588986,1751633432687,-175.917722,0.0001544,2]
[369588988,1751633432698,-290.61894022,0.0001544,2]
[369588991,1751633432710,-209.38105978,0.0001544,2]
[369588993,1751633432719,-257.71824021,0.0001544,2]
[369588995,1751633432732,-242.28175979,0.0001544,2]
[369588996,1751633432742,-500.0,0.0001544,2]
[369588998,1751633432751,-500.0,0.0001544,2]
[369589000,1751633432760,-500.0,0.0001544,2]
[369589002,1751633432769,-500.0,0.0001544,2]
[369589004,1751633432779,-500.0,0.0001544,2]
[369589006,1751633432788,-406.59293801,0.0001544,2]
[369589007,1751633432797,-500.0,0.0001544,2]
[369589009,1751633432807,-150.37840333,0.0001544,2]
[369589012,1751633432818,-449.62159667,0.0001544,2]
[369589014,1751633432827,-500.0,0.0001544,2]
[369589016,1751633432836,-500.0,0.0001544,2]
[369589017,1751633432846,-500.0,0.0001544,2]
[369589019,1751633432855,-500.0,0.0001544,2]
[369589021,1751633432864,-245.98054344,0.0001544,2]
[369589023,1751633432874,-222.5358599,0.0001544,2]
[369589028,1751633432908,-277.4641401,0.0001544,2]
[369589030,1751633432918,-575.0,0.0001544,2]
[369589032,1751633432927,-2246.8216761,0.00015441,2]
[369589042,1751633438635,-9386.6117718,0.00015441,2]
[369589043,1751633438741,-545.89180486,0.00015441,2]
[369589044,1751633438752,-12720.67474724,0.00015441,2]
[369589045,1751633438761,-285.04066697,0.00016328,2]
[369589046,1751633438778,-160.0,0.00016423,2]
[369589047,1751633438791,-151.0,0.00016428,2]
[369589048,1751633438801,-151.0,0.00016428,2]
[369589049,1751633438810,-151.0,0.00016428,2]
[369589050,1751633438821,-151.0,0.00016428,2]
[369589051,1751633438830,-151.0,0.00016428,2]
[369589052,1751633438840,-207.4,0.00016428,2]
[369589053,1751633438849,-151.0,0.00016428,2]
[369589054,1751633438858,-151.0,0.00016428,2]
[369589055,1751633438868,-151.0,0.00016428,2]
[369589056,1751633438878,-151.0,0.00016428,2]
[369589057,1751633438887,-151.0,0.00016428,2]
[369589058,1751633438897,-151.0,0.00016428,2]
[369589059,1751633438907,-151.0,0.00016428,2]
[369589060,1751633438917,-151.0,0.00016428,2]
[369589061,1751633438926,-151.0,0.00016428,2]
[369589062,1751633438936,-151.0,0.00016428,2]
[369589063,1751633438947,-32.32358298,0.00016428,2]
[369589064,1751633438961,-118.67641702,0.00016428,2]
[369589065,1751633438972,-151.0,0.00016428,2]
[369589066,1751633438983,-151.0,0.00016428,2]
[369589067,1751633438993,-151.0,0.00016428,2]
[369589068,1751633439004,-151.0,0.00016428,2]
[369589069,1751633439013,-2910.1229156,0.00016428,2]
[369589070,1751633439027,-728.1996,0.00016428,2]
[369589071,1751633439042,-1361.6774844,0.00016428,2]
[369589072,1751633439052,-321.53922094,0.00016428,2]
[369589111,1751633440964,-9388.26983408,0.00016428,2]
[369589114,1751633440976,-254.00260516,0.00016428,2]
[369589116,1751633440988,-514.49783052,0.00016428,2]
[369589118,1751633440999,-603.519,0.00016428,2]
[369589120,1751633441013,-1554.57737935,0.00016428,2]
[369589151,1751633441307,-824.95454347,0.00016428,2]
[369589153,1751633441320,-346.163741,0.00016428,2]
[369589333,1751633443735,-3917.60543428,0.00016428,2]
[369589335,1751633443745,-500.0,0.00016437,2]
[369589337,1751633443756,-500.0,0.00016437,2]
[369589339,1751633443765,-500.0,0.00016437,2]
[369589341,1751633443775,-500.0,0.00016437,2]
[369589343,1751633443784,-500.0,0.00016437,2]
[369589345,1751633443793,-500.0,0.00016437,2]
[369589347,1751633443804,-500.0,0.00016437,2]
[369589349,1751633443813,-500.0,0.00016437,2]
[369589351,1751633443823,-500.0,0.00016437,2]
[369589354,1751633443832,-500.0,0.00016437,2]
[369589357,1751633443842,-558.54681109,0.00016437,2]
[369589361,1751633443851,-500.0,0.00016437,2]
[369589364,1751633443861,-346.53106317,0.00016437,2]
[369589367,1751633443870,-500.0,0.00016437,2]
[369589370,1751633443880,-152.35519213,0.00016437,2]
[369589373,1751633443889,-500.0,0.00016437,2]
[369589376,1751633443899,-460.0,0.00016438,2]
[369589378,1751633443909,-460.0,0.00016438,2]
[369589380,1751633443918,-460.0,0.00016438,2]
[369589382,1751633443927,-460.0,0.00016438,2]
[369589384,1751633443936,-460.0,0.00016438,2]
[369589386,1751633443946,-460.0,0.00016438,2]
[369589388,1751633443955,-460.0,0.00016438,2]
[369589390,1751633443964,-460.0,0.00016438,2]
[369589391,1751633443973,-460.0,0.00016438,2]
[369589393,1751633443983,-460.0,0.00016438,2]
[369589395,1751633443992,-460.0,0.00016438,2]
[369589397,1751633444001,-1002.47827891,0.00016438,2]
[369589399,1751633444011,-460.0,0.00016438,2]
[369589401,1751633444021,-460.0,0.00016438,2]
[369589403,1751633444030,-460.0,0.00016438,2]
[369589406,1751633444040,-460.0,0.00016438,2]
[369589408,1751633444049,-471.77029986,0.00016438,2]
[369589409,1751633444058,-460.0,0.00016438,2]
[369589411,1751633444068,-468.18712179,0.00016438,2]
[369589413,1751633444077,-460.0,0.00016438,2]
[369589415,1751633444087,-460.0,0.00016438,2]
[369589417,1751633444096,-494.92,0.00016438,2]
[369589419,1751633444105,-500.0,0.00016438,2]
[369589421,1751633444115,-500.0,0.00016438,2]
[369589423,1751633444124,-398.79632793,0.00016438,2]
[369589425,1751633444133,-460.0,0.00016438,2]
[369589427,1751633444143,-460.0,0.00016438,2]
[369589430,1751633444152,-673.1,0.00016438,2]
[369589431,1751633444161,-460.0,0.00016438,2]
[369589433,1751633444171,-582.22,0.00016438,2]
[369589435,1751633444180,-468.55483419,0.00016438,2]
[369589437,1751633444189,-460.0,0.00016438,2]
[369589438,1751633444198,-460.0,0.00016438,2]
[369589440,1751633444208,-624.35,0.00016438,2]
[369589442,1751633444218,-460.0,0.00016438,2]
[369589444,1751633444228,-460.0,0.00016438,2]
[369589446,1751633444237,-460.0,0.00016438,2]
[369589448,1751633444247,-460.0,0.00016438,2]
[369589450,1751633444256,-460.0,0.00016438,2]
[369589452,1751633444265,-460.0,0.00016438,2]
[369589454,1751633444274,-460.0,0.00016438,2]
[369589456,1751633444284,-500.0,0.00016438,2]
[369589458,1751633444293,-500.0,0.00016438,2]
[369589460,1751633444302,-255.01363931,0.00016438,2]
[369589462,1751633444312,-460.0,0.00016438,2]
[369589464,1751633444321,-182.89069867,0.00016438,2]
[369589468,1751633444347,-277.10930133,0.00016438,2]
[369589470,1751633444356,-460.0,0.00016438,2]
[369589471,1751633444366,-559.57,0.00016438,2]
[369589473,1751633444375,-462.69897738,0.00016438,2]
[369589476,1751633444386,-463.71195241,0.00016438,2]
[369589477,1751633444395,-460.0,0.00016438,2]
[369589479,1751633444405,-460.0,0.00016438,2]
[369589481,1751633444414,-460.0,0.00016438,2]
[369589483,1751633444424,-460.0,0.00016438,2]
[369589485,1751633444433,-67.81550817,0.00016438,2]
[369589488,1751633444445,-644.89449183,0.00016438,2]
[369589489,1751633444455,-460.0,0.00016438,2]
[369589491,1751633444464,-460.0,0.00016438,2]
[369589493,1751633444473,-460.0,0.00016438,2]
[369589495,1751633444483,-1330.81,0.00016438,2]
[369589497,1751633444492,-460.0,0.00016438,2]
[369589499,1751633444502,-460.0,0.00016438,2]
[369589501,1751633444511,-460.0,0.00016438,2]
[369589503,1751633444520,-500.0,0.00016438,2]
[369589505,1751633444530,-500.0,0.00016438,2]
[369589507,1751633444540,-573.21,0.00016438,2]
[369589509,1751633444549,-460.0,0.00016438,2]
[369589511,1751633444558,-460.0,0.00016438,2]
[369589513,1751633444568,-460.0,0.00016438,2]
[369589515,1751633444577,-536.57,0.00016438,2]
[369589517,1751633444586,-460.0,0.00016438,2]
[369589519,1751633444595,-460.0,0.00016438,2]
[369589521,1751633444605,-2420.84,0.00016438,2]
[369589523,1751633444614,-649.7,0.00016438,2]
[369589525,1751633444624,-288.07129699,0.00016438,2]
[369589527,1751633444633,-677.42,0.00016438,2]
[369589529,1751633444643,-1114.36,0.00016438,2]
[369589530,1751633444655,-460.0,0.00016438,2]
[369589532,1751633444664,-460.0,0.00016438,2]
[369589534,1751633444674,-464.4470707,0.00016438,2]
[369589536,1751633444683,-713.96643689,0.00016438,2]
[369589539,1751633444695,-74.23356311,0.00016438,2]
[369589540,1751633444705,-181.5572818,0.00016438,2]
[369589542,1751633444715,-210.42972998,0.00016438,2]
[369589739,1751633446656,-349.01627376,0.00016438,2]
[369589741,1751633446666,-556.76,0.00016438,2]
[369589743,1751633446676,-462.1042617,0.00016438,2]
[369589745,1751633446686,-527.74829105,0.00016438,2]
[369589747,1751633446696,-460.0,0.00016438,2]
[369589749,1751633446706,-0.62254549,0.00016438,2]
[369589751,1751633446718,-965.78745451,0.00016438,2]
[369589753,1751633446728,-806.12746547,0.00016438,2]
[369589755,1751633446739,-266.81253453,0.00016438,2]
[369589757,1751633446748,-617.96,0.00016438,2]
[369589759,1751633446758,-536.9,0.00016438,2]
[369589761,1751633446767,-217.01,0.00016438,2]
[369589763,1751633446777,-2254.0,0.00016438,2]
[369589765,1751633446786,-518.36,0.00016438,2]
[369589767,1751633446795,-457.58376747,0.00016438,2]
[369590398,1751633582819,864.829577,0.00013699,2]
[369590416,1751634632097,-208.04139752,0.0001528,2]
[369590417,1751634632107,-313.76025027,0.00015291,2]
[369590418,1751634632117,-786.64635221,0.00015391,2]
[369590459,1751634637857,-325.26,0.00015391,2]
[369590460,1751634637914,-88.09364779,0.00015391,2]
[369590461,1751634637924,-295.0,0.00015391,2]
[369590462,1751634637934,-1200.0,0.00015392,2]
[369590463,1751634637943,-400.0,0.00015393,2]
[369590464,1751634637953,-175.0,0.00015393,2]
[369590465,1751634637962,-193.99783816,0.00015393,2]
[369590466,1751634637972,-300.0,0.00015393,2]
[369590467,1751634637981,-300.0,0.00015393,2]
[369590468,1751634637991,-300.0,0.00015393,2]
[369590469,1751634638001,-300.0,0.00015393,2]
[369590470,1751634638011,-16091.79950149,0.00015394,2]
[369590471,1751634638028,-8808.20049851,0.00015394,2]
[369590472,1751634638038,-206.01228396,0.00016003,2]
[369590473,1751634638047,-163.75489393,0.00016258,2]
[369590474,1751634638057,-207.4,0.00016392,2]
[369590475,1751634638067,-151.0,0.00016428,2]
[369590476,1751634638077,-151.0,0.00016428,2]
[369590477,1751634638087,-151.0,0.00016428,2]
[369590478,1751634638096,-151.0,0.00016428,2]
[369590479,1751634638109,-151.0,0.00016428,2]
[369590480,1751634638119,-151.0,0.00016428,2]
[369590481,1751634638129,-151.0,0.00016428,2]
[369590482,1751634638138,-151.0,0.00016428,2]
[369590483,1751634638147,-151.0,0.00016428,2]
[369590484,1751634638158,-151.0,0.00016428,2]
[369590485,1751634638167,-151.0,0.00016428,2]
[369590486,1751634638177,-500.0,0.00016437,2]
[369590487,1751634638187,-333.05995198,0.00016437,2]
[369590488,1751634638197,-500.0,0.00016437,2]
[369590489,1751634638207,-500.0,0.00016437,2]
[369590490,1751634638216,-500.0,0.00016437,2]
[369590491,1751634638226,-500.0,0.00016437,2]
[369590492,1751634638235,-500.0,0.00016437,2]
[369590493,1751634638245,-500.0,0.00016437,2]
[369590494,1751634638255,-183.55451198,0.00016437,2]
[369590495,1751634638264,-500.0,0.00016437,2]
[369590496,1751634638274,-500.0,0.00016437,2]
[369590497,1751634638284,-500.0,0.00016437,2]
[369590498,1751634638294,-300.0,0.00016437,2]
[369590499,1751634638304,-460.0,0.00016438,2]
[369590500,1751634638313,-460.0,0.00016438,2]
[369590501,1751634638323,-460.0,0.00016438,2]
[369590502,1751634638333,-460.0,0.00016438,2]
[369590503,1751634638343,-460.0,0.00016438,2]
[369590504,1751634638353,-460.0,0.00016438,2]
[369590505,1751634638362,-460.0,0.00016438,2]
[369590506,1751634638371,-460.0,0.00016438,2]
[369590507,1751634638382,-460.98212511,0.00016438,2]
[369590508,1751634638396,-460.0,0.00016438,2]
[369590509,1751634638406,-460.0,0.00016438,2]
[369590510,1751634638415,-460.0,0.00016438,2]